Cogmind - Beta 14 @@@ ROGUE MODE // 2024.12.27 @ 13:19:47 Player: Devolved Result: Destroyed by S-10 Pest with Light Assault Rifle Performance ------------- Evolutions (0) 0 Regions Visited (2) 400 Robots Destroyed (38) 190 Value Destroyed (407) 407 Prototype IDs (0) 0 Alien Tech Used (0) 0 Bonus (0) 0 TOTAL SCORE: 997 Bonus ------- None Cogmind --------- Core Integrity 0/250 Matter 300/300 Energy 250/265 System Corruption 1% Temperature Cool (0) Movement Rolling (80) Location -10/Mines Parts ------- > --- POWER (1) -------- Improved Ion Engine > --- PROPULSION (2) --- Wheel Wheel > --- UTILITY (2) ------ Signal Interpreter Terrain Scan Processor > --- WEAPON (2) ------- Particle Cannon Datajack > --- INVENTORY (5) ---- Machine Analyzer Terrain Scanner Transport Network Coupler Assault Rifle Peak State ------------ > --- POWER ------------ Improved Ion Engine > --- PROPULSION ------- Wheel Wheel > --- UTILITY ---------- Signal Interpreter Terrain Scan Processor > --- WEAPON ----------- Particle Cannon Datajack > --- INVENTORY -------- Machine Analyzer Terrain Scanner Transport Network Coupler Assault Rifle [Rating: 10] Favorites ----------- Power Ion Engine Engine Ion Engine Propulsion Aluminum Leg Leg Aluminum Leg Wheel Wheel Hover Unit Hover Unit Flight Unit Flight Unit Utility Terrain Scan Processor Device Terrain Scanner Storage Huge Storage Unit Processor Terrain Scan Processor Weapon Assault Rifle Energy Gun EM Pulse Gun Energy Cannon Particle Cannon Ballistic Gun Assault Rifle Special Melee Weapon Datajack Build | -11 -10 -10 ------- Run | Yrd Mat Min Slots Evolved . | . . . Power . | . . . Propulsion . | . . . Utility . | . . . Weapon . | . . . Parts Attached 28 | 5 23 . Power 4 | 1 3 . Engine 4 | 1 3 . Core . | . . . Reactor . | . . . Propulsion 10 | 2 8 . Treads . | . . . Leg 4 | 2 2 . Wheel 4 | . 4 . Hover 1 | . 1 . Flight 1 | . 1 . Utility 5 | . 5 . Device 2 | . 2 . Storage 1 | . 1 . Processor 2 | . 2 . Hackware . | . . . Protection . | . . . Artifact . | . . . Weapon 9 | 2 7 . Energy Gun 1 | . 1 . Energy Cannon 1 | . 1 . Ballistic Gun 5 | 2 3 . Ballistic Cannon . | . . . Launcher . | . . . Special Weapon . | . . . Impact Weapon . | . . . Slashing Weapon . | . . . Piercing Weapon . | . . . Special Melee Weapon 2 | . 2 . Unidentified Prototypes . | . . . Parts Lost 6 | . 6 . Power 3 | . 3 . Propulsion 2 | . 2 . Utility . | . . . Weapon 1 | . 1 . Highest Loss Streak 2 | . 2 . To Critical Strikes . | . . . Average Slot Usage (%) 95 | . 95 100 Engine 11 | . 11 14 Leg 13 | . 13 . Wheel 8 | . 8 28 Flight 4 | . 4 . Device 3 | . 3 . Processor 23 | . 23 28 Energy Gun 4 | . 4 . Ballistic Gun 17 | . 17 . Special Melee Weapon 5 | . 5 14 Peak Build Rating 10 | 5 10 10 Average Rating 7 | 3 7 10 On Entrance 5 | . 5 10 Naked Turns . | . . . Heaviest Build 12 | 6 12 12 Greatest Support 20 | 20 20 20 Greatest Overweight (x) 2 | . 2 . Average Overweight (x) . | . . . Largest Inventory Capacity 25 | 5 25 5 Average Capacity 5 | 5 5 5 Most Carried 5 | 3 5 4 Average Carried 4 | 1 4 4 Final Capacity 5 | 5 5 5 Final Carried 4 | 2 4 4 Class Distribution -------------------- 58% | Scavenger-Mutant 41% | Mutant Dominant Class ---------------- Scavenger-Mutant | -10/Materials Scavenger-Mutant | -10/Mines Resources | -11 -10 -10 ----------- Run | Yrd Mat Min Matter Collected 783 | 301 472 10 Remotely . | . . . Salvage Created 1183 | 121 1051 11 Parts 75 | 12 63 . Haulers Intercepted 2 | . 2 . Recyclers Shooed 3 | . 3 . Parts Field Recycled . | . . . Retrieved Matter . | . . . Parts Self-Destructed . | . . . Prevented . | . . . Kills | -11 -10 -10 ------- Run | Yrd Mat Min Combat Hostiles Destroyed 9 | 1 8 . Guns 9 | 1 8 . Classes Destroyed 9 | 3 6 . Worker 13 | 1 11 1 Builder 4 | . 4 . Tunneler 3 | 3 . . Hauler 2 | . 2 . Recycler 4 | . 4 . Mechanic 1 | . 1 . Watcher 2 | . 2 . Swarmer 3 | . 3 . Grunt 6 | 1 5 . Best Kill Streak 4 | 4 4 1 Combat Bots Only 3 | 1 3 . Max Kills in Single Turn 1 | 1 1 1 Gunslinging . | . . . Exploded . | . . . Melee . | . . . Uniques/NPCs Destroyed . | . . . Combat | -11 -10 -10 -------- Run | Yrd Mat Min Hostile Shots Fired 78 | 4 70 4 Missed 22 | 2 20 . Damage Taken 876 | 21 819 36 Core 254 | 10 226 18 Absorbed by Shields . | . . . Core Remaining (%) 96 | 96 . . Volleys Fired 137 | 17 118 2 Largest 2 | 1 2 1 Hottest 68 | 20 40 68 Shots Fired 205 | 17 186 2 Gun 203 | 17 186 . Cannon 2 | . . 2 Launcher . | . . . Special . | . . . Kinetic 153 | 17 136 . Thermal 2 | . . 2 Explosive . | . . . Electromagnetic 50 | . 50 . Robot Hit Streak 13 | 5 13 3 Robot Miss Streak 6 | 1 6 . Penetration Max . | . . . Secondary Targets 1 | . 1 . Max Gunslinging Chain 1 | . 1 . Shots Hit Robots 127 | 12 112 3 Core Hits 56 | 5 50 1 Critical Kills . | . . . Critical Parts Destroyed . | . . . Critical Strikes . | . . . Melee Attacks 7 | . 6 1 Impact . | . . . Slashing . | . . . Piercing . | . . . Sneak Attacks 5 | . 5 . Combat Hostiles . | . . . Follow-up Attacks . | . . . Damage Inflicted 1588 | 164 1384 40 Guns 1441 | 164 1277 . Cannons 40 | . . 40 Explosions 103 | . 103 . Melee . | . . . Ramming 4 | . 4 . Kinetic 1036 | 164 872 . Thermal 143 | . 103 40 Explosive . | . . . Electromagnetic 405 | . 405 . Impact . | . . . Slashing . | . . . Piercing . | . . . Highest Corruption 1 | . 1 1 Average Corruption 1 | . 1 1 Corruption Purged . | . . . Corruption Blocked . | . . . Overload Shots . | . . . Overflow Damage 55 | . 55 . Projectiles . | . . . Explosions 55 | . 55 . Melee . | . . . Knockbacks . | . . . Impact . | . . . Kinetic . | . . . Secondary . | . . . Self-Inflicted Damage 193 | . 193 . Shots 4 | . 4 . Rammed . | . . . Targets Rammed 1 | . 1 . Kicked 1 | . 1 . Crushed . | . . . Highest Temperature 43 | . 43 30 Average Temperature 7 | . 6 18 Received Heat Transfer 246 | 12 234 . Siege Activations . | . . . Robots Corrupted . | . . . Combat Hostiles . | . . . Parts Fried 3 | . 3 . Impact Corruptions . | . . . Robots Melted . | . . . Combat Hostiles . | . . . Parts Melted . | . . . Heat Transferred 174 | . 100 74 Parts Sabotaged . | . . . Parts Stolen . | . . . Parts Stripped . | . . . Power Chain Reactions 3 | . 3 . Alert | -11 -10 -10 ------- Run | Yrd Mat Min Peak Influence 226 | 40 226 30 Initial 26 | . 26 25 Average 73 | 13 80 28 Maximum Alert Level 1 | . 1 . Low Security (%) 90 | 100 89 100 Level 1 9 | . 10 . Level 2 . | . . . Level 3 . | . . . Level 4 . | . . . Level 5 . | . . . High Security . | . . . Max Security . | . . . Squads Dispatched 2 | . 2 . Investigation 1 | . 1 . Extermination . | . . . Reinforcement 1 | . 1 . Assault . | . . . Garrison . | . . . Intercept . | . . . Searches Triggered . | . . . Construction Impeded . | . . . Haulers Reinforced . | . . . Active Scanning Responses . | . . . Cargo Convoy Interrupts . | . . . Stealth | -11 -10 -10 --------- Run | Yrd Mat Min Distress Signals . | . . . Communications Jammed . | . . . Distress Signals . | . . . Times Spotted 30 | 1 26 3 Peak Tracking Total 5 | 1 5 3 Tactical Retreats 1 | . 1 . Traps | -11 -10 -10 ------- Run | Yrd Mat Min Traps Triggered 3 | . 3 . Indirectly . | . . . Trap Hack Attempts . | . . . Triggered . | . . . Disarmed . | . . . Reprogrammed . | . . . Reused . | . . . Traps Extracted . | . . . Installed . | . . . Triggered . | . . . Machines | -11 -10 -10 ---------- Run | Yrd Mat Min Machines Disabled 2 | . 2 . Max in Single Turn 2 | . 2 . Machines Repaired . | . . . Machines Dismantled . | . . . Machines Sabotaged . | . . . Overloaded Fab Kills . | . . . Hacking | -11 -10 -10 --------- Run | Yrd Mat Min Machines Accessed 6 | . 6 . Terminals 5 | . 5 . Fabricators . | . . . Repair Stations . | . . . Recycling Units 1 | . 1 . Scanalyzers . | . . . Garrison Access . | . . . Total Hacks 15 | . 15 . Successful 7 | . 7 . Failed 8 | . 8 . Catastrophic . | . . . Database Lockouts . | . . . Manual 1 | . 1 . Terminals 12 | . 12 . Fabricators . | . . . Repair Stations . | . . . Recycling Units 3 | . 3 . Scanalyzers . | . . . Garrison Access . | . . . Terminal Hacks 4 | . 4 . Record 3 | . 3 . Unreport Threat 1 | . 1 . Fabricator Hacks . | . . . Repair Station Hacks . | . . . Recycling Unit Hacks 3 | . 3 . Process 1 | . 1 . Report Inventory 1 | . 1 . Retrieve Matter 1 | . 1 . Scanalyzer . | . . . Garrison Access Hacks . | . . . Unauthorized Hacks . | . . . Terminals . | . . . Fabricators . | . . . Repair Stations . | . . . Recycling Units . | . . . Scanalyzers . | . . . Garrison Access . | . . . Data Cores Recovered . | . . . Used . | . . . Hacking Detections 5 | . 5 . Full Trace Events 2 | . 2 . Feedback Events 1 | . 1 . Corruption 1 | . 1 . Feedback Blocked . | . . . Robot Schematics Acquired . | . . . Robots Built . | . . . Authchips . | . . . Time . | . . . Total Robot Build Rating . | . . . Part Schematics Acquired . | . . . Parts Built . | . . . Authchips . | . . . Time . | . . . Total Part Build Rating . | . . . Parts Repaired . | . . . Time . | . . . Parts Recycled . | . . . Recycled Matter . | . . . Retrieved Matter . | . . . Retrieved Components . | . . . Parts Scanalyzed . | . . . Part Schematics Acquired . | . . . Parts Damaged . | . . . Bothacking | -11 -10 -10 ------------ Run | Yrd Mat Min Used RIF Installer . | . . . Robots Hacked 3 | . 2 1 Non-combat 2 | . 2 . Combat 1 | . . 1 Robot Hacks Applied 4 | . 3 1 parse_system 2 | . 1 1 no_distress 2 | . 2 . Relay Couplers Released . | . . . Fabnet Peak Effective % . | . . . Robots Rewired . | . . . Allies Hacked . | . . . Hacks Repelled . | . . . Allies | -11 -10 -10 -------- Run | Yrd Mat Min Total Allies . | . . . Largest Group . | . . . Highest-Rated Group . | . . . Highest-Rated Ally . | . . . Total Orders . | . . . Ally Attacks . | . . . Total Damage . | . . . Kills . | . . . Allies Corrupted . | . . . Allies Melted . | . . . Intel | -11 -10 -10 ------- Run | Yrd Mat Min Robot Analysis Total . | . . . Derelict Logs Recovered . | . . . Drone Launches . | . . . Drone Recoveries . | . . . Exploration | -11 -10 -10 ------------- Run | Yrd Mat Min Turns Passed 1650 | 147 1485 18 Spaces Moved 1094 | 95 987 12 Core 19 | 18 1 . Treads . | . . . Legs 610 | 77 533 . Wheels 362 | . 350 12 Hover 46 | . 46 . Flight 57 | . 57 . Fastest Speed 50 | 50 60 80 Average Speed 104 | 106 104 80 Slowest Speed 150 | 120 150 80 Overloaded Moves . | . . . Propulsion Burnouts . | . . . Robots Hopped . | . . . Cave-ins Triggered . | . . . Exploration Rate (%) 34 | 5 93 5 Regions Visited 2 Branch Regions 1 Pre-discovered Areas . | . . . Known Exits Taken 1 | . 1 . Unknown Exits Taken 1 | 1 . . Scrap Searched . | . . . Spaces Dug . | . . . Terrain Destroyed 44 | . 44 . Melee . | . . . Projectile . | . . . AOE 44 | . 44 . Terrain Rammed . | . . . Walls Destroyed . | . . . Machines Disabled . | . . . Actions | -11 -10 -10 --------- Run | Yrd Mat Min Total 1404 | 123 1262 19 Wait 105 | . 101 4 Move 1092 | 94 986 12 Hop . | . . . Pick Up 22 | 7 15 . Fast Attach 6 | . 6 . Attach 11 | 5 6 . Detach . | . . . Swap 11 | . 11 . Drop 12 | . 12 . Fire 137 | 17 118 2 Melee 7 | . 6 1 Ram . | . . . Kick 1 | . 1 . Crush . | . . . Escape Stasis . | . . . Rewire . | . . . Trap . | . . . Miscellaneous . | . . . Route ------- -11/Scrapyard -10/Materials (discovered 4 exits: [*Mat x3] / *Min) -10/Mines History --------- Turn | Location | Event 2 | -11/Scrapyard | Met Revision 17 85 | -11/Scrapyard | Discovered new exit (range 8) 148 | -11/Scrapyard | Entered Materials 302 | -10/Materials | Build established: Mutant 427 | -10/Materials | Discovered new exit (range 13) 653 | -10/Materials | Core integrity fell below 50% 656 | -10/Materials | Build established: Scavenger-Mutant 972 | -10/Materials | Discovered new exit (range 15) 1331 | -10/Materials | Core integrity fell below 20% 1409 | -10/Materials | Discovered new exit (range 14) 1468 | -10/Materials | Discovered new exit (range 5) 1631 | -10/Materials | Identified exit to Mines 1633 | -10/Materials | Entered Mines 1651 | -10/Mines | Destroyed by S-10 Pest with Light Assault Rifle Last Messages --------------- Connecting with Terminal... U-05 Engineer lays Concrete. Connecting with Terminal... Feedback: System corruption (+1%). ALERT: Suspicious activity at Terminal M006. Dispatching Investigation squad. EM Pulse Gun destroyed. EXIT=IDENTIFIED: MINES LOCATION=MINES GOAL=ESCAPE K-01 Serf collects debris. K-01 Serf destroyed. K-01 Serf collects debris. Acquired 10 matter. K-01 Serf collects debris. Jacked S-10 Pest... >>parse_system Reading system data... K-01 Serf collects debris. Destroyed Flight Unit. Map ----- +----------------------------------------------------+ | | | | | | | | | | | | | | | | | | | | | | | | | | | | | | | | | | | | | | | ?????????????????????????????????????????????????? | | ????????????????????????########?????????????????? | | ????????????????????????# #?????????????????? | | ????????????????????????# #?????????????????? | | ?????????????????????#### % #?????????????????? | | ?????????????????????# k #?????????????????? | | ?????????????????????# s@ #?????????????????? | | ????????????????# s# #?????????????????? | | ??????????????# ########?????????????????? | | ?????????????# ?????????????????????????? | | ?????????????# ?????????????????????????? | | ?????????????##### ??????????????????????????? | | ?????????????????## ??????????????????????????? | | ??????????????????# ??????????????????????????? | | ?????????????????? ??????????????????????????? | | ????????????????? ???????????????????????????? | | ???????????????? ???????????????????????????? | | ???????????????? ???????????????????????????? | | ????????????????? ???????????????????????????? | | ???????????????????? ????????????????????????????? | | ?????????????????????????????????????????????????? | | ?????????????????????????????????????????????????? | | ?????????????????????????????????????????????????? | | ?????????????????????????????????????????????????? | | ?????????????????????????????????????????????????? | | ?????????????????????????????????????????????????? | | ?????????????????????????????????????????????????? | | ?????????????????????????????????????????????????? | | ?????????????????????????????????????????????????? | | ?????????????????????????????????????????????????? | | ?????????????????????????????????????????????????? | +----------------------------------------------------+ Best States ------------- Heat Dissipation 25 Energy Generation 12 Energy Capacity 265 Matter Stores 300 Matter Capacity 300 Sight Range 16 Terrain Scan Range 14 Terrain Scan Density 85 Evasion (%) 55 Item Schematics ----------------- None Robot Schematics ------------------ None Fabricated ------------ Nothing Alien Tech Used ----------------- None Achievements -------------- Everything Is Under Control Challenges ------------ None Game ------ Seed DrainedRelayExtrapolator Manual? 0 Play Time 00:28:20 Cumulative 3.7 hours Start 2024.12.27 @ 12:50:37 End 2024.12.27 @ 13:19:47 Sessions 1 Manual Loads 0 Difficulty Rogue Special Mode None Game No. 3 Rogue 3 Adventurer 0 Explorer 0 Win Type - Total 0 Types 0/0/0/0/0/0/0/0/0 Lore% 4 Gallery% 6 Achievement% 7 Wizard Run 0 Options --------- Layout 1 ASCII 0 Keyboard 0 Movement Numpad Keybinds 0 Fullscreen 1 Font 32/SmallcapsGlow Map View 77x35 Zoom Use 0% Tactical HUD 0 Map Filters NONE Filters NONE Steam 1 RUN: f5336dfa-fd1a-4a0b-b491-2cf46770c747